bitfinex/quotes_BTCUSD_20250830
["timestamp","ask_amount","ask_price","bid_price","bid_amount"]
[1756557283774,0.99786325,108650.0,108640.0,0.25735444]
[1756557284814,0.99786325,108650.0,108640.0,0.21449656]
[1756557285902,0.69875174,108650.0,108640.0,0.21449656]
[1756557286098,0.99564325,108650.0,108640.0,0.21449656]
[1756557286551,0.69875174,108650.0,108640.0,0.21449656]
[1756557286752,0.99564325,108650.0,108640.0,0.21449656]
[1756557287216,0.35719443,108650.0,108640.0,0.21449656]
[1756557288191,0.34,108650.0,108640.0,0.30747657]
[1756557288701,0.49736,108660.0,108650.0,0.18407731]
[1756557288912,0.51455747,108660.0,108650.0,0.18927731]
[1756557289653,0.51455487,108660.0,108650.0,0.18927731]
[1756557290080,0.51455487,108660.0,108650.0,0.241788]
[1756557290281,0.17451487,108660.0,108650.0,0.241788]
[1756557290483,0.15732,108660.0,108650.0,0.26272682]
[1756557290693,1.09695711,108670.0,108660.0,0.18406037]
[1756557290882,1.45627082,108670.0,108660.0,0.18609037]
[1756557291115,1.45627082,108670.0,108660.0,0.18915037]
[1756557291286,1.45627082,108670.0,108660.0,0.18609037]
[1756557292208,0.80669371,108670.0,108660.0,0.25241739]
[1756557292401,0.49724,108670.0,108660.0,0.18915037]
[1756557292799,0.98336494,108670.0,108660.0,0.18406037]
[1756557293455,0.68647343,108670.0,108660.0,0.18406037]
[1756557293657,0.98029494,108670.0,108660.0,0.18406037]
[1756557293861,0.98029494,108670.0,108650.0,0.43344578]
[1756557293862,0.98336494,108670.0,108650.0,0.43344578]
[1756557294037,0.29689151,108660.0,108650.0,0.43344578]
[1756557294234,0.98336494,108670.0,108650.0,0.5054326]
[1756557294439,0.98336494,108670.0,108660.0,0.00230075]
[1756557295106,0.98336494,108670.0,108660.0,0.18636112]
[1756557295470,0.98336494,108670.0,108660.0,0.18406037]
[1756557297674,0.68340343,108670.0,108660.0,0.18609037]
[1756557297878,0.49752,108670.0,108660.0,0.25830267]
[1756557298108,0.79441151,108670.0,108660.0,0.25830267]
[1756557298510,0.79653151,108670.0,108660.0,0.25830267]
[1756557298777,0.45653151,108670.0,108660.0,0.25830267]
[1756557300376,0.00212,108670.0,108660.0,0.25830267]
[1756557300583,0.42459231,108680.0,108670.0,0.02093882]
[1756557300783,0.73864996,108680.0,108670.0,0.02093882]
[1756557300987,0.74076996,108680.0,108670.0,0.02093882]
[1756557301721,0.72360382,108680.0,108670.0,0.04865997]
[1756557301937,0.72360382,108680.0,108670.0,0.02093882]
[1756557301938,0.74076974,108680.0,108670.0,0.02093882]
[1756557302402,0.76943977,108680.0,108670.0,0.02093882]
[1756557302606,0.77587617,108680.0,108670.0,0.02093882]
[1756557304517,1.11587617,108680.0,108670.0,0.02093882]
[1756557304963,0.66150466,108680.0,108670.0,0.02093882]
[1756557305167,1.11575617,108680.0,108670.0,0.04865011]
[1756557305580,0.95195977,108680.0,108670.0,0.04865011]
[1756557305780,1.10931977,108680.0,108670.0,0.04865011]
[1756557305988,1.10931977,108680.0,108670.0,0.02093882]
[1756557305989,0.65506826,108680.0,108670.0,0.02093882]
[1756557306211,1.10935977,108680.0,108670.0,0.02093882]
[1756557306814,0.81246826,108680.0,108670.0,0.02093882]
[1756557307147,1.10935977,108680.0,108670.0,0.02093882]
[1756557310828,0.81246826,108680.0,108670.0,0.02093882]
[1756557311143,1.10628977,108680.0,108670.0,0.02093882]
[1756557311378,1.10935977,108680.0,108670.0,0.02093882]
[1756557312119,1.10937057,108680.0,108670.0,0.02093882]
[1756557312739,1.10937099,108680.0,108670.0,0.02093882]
[1756557313892,1.1356034,108680.0,108670.0,0.02093882]
[1756557319393,0.83871189,108680.0,108670.0,0.02093882]
[1756557319597,1.1356034,108680.0,108670.0,0.02093882]
[1756557322257,0.67824189,108680.0,108670.0,0.02299882]
[1756557322481,1.05293182,108680.0,108670.0,0.02623882]
[1756557322705,0.0458787,108680.0,108670.0,0.21028225]
[1756557322929,0.20223319,108680.0,108670.0,0.23852358]
[1756557323150,0.0182077,108680.0,108670.0,0.23852358]
[1756557323369,0.01820122,108680.0,108670.0,0.23852358]
[1756557323628,0.20222771,108680.0,108670.0,0.21028225]
[1756557323852,0.49811922,108680.0,108670.0,0.02623882]
[1756557324065,0.49811922,108680.0,108670.0,0.21028225]
[1756557324275,0.18402649,108680.0,108670.0,0.21028225]
[1756557324928,0.18402649,108680.0,108670.0,0.21128225]
[1756557325628,0.480918,108680.0,108670.0,0.21128225]
[1756557326070,0.18402649,108680.0,108670.0,0.21128225]
[1756557326286,0.480918,108680.0,108670.0,0.21128225]
[1756557329302,0.25201432,108690.0,108680.0,0.18402649]
[1756557329303,0.58281385,108690.0,108680.0,0.18402649]
[1756557329520,1.02622095,108690.0,108680.0,0.18932649]
[1756557329734,1.02622095,108690.0,108680.0,0.23101016]
[1756557329948,1.02622095,108690.0,108680.0,0.04698367]
[1756557330189,1.02622095,108690.0,108680.0,0.0053]
[1756557330410,0.72932944,108690.0,108680.0,0.0053]
[1756557330577,1.02622095,108690.0,108680.0,0.00760033]
[1756557330806,1.01181924,108690.0,108680.0,0.00760033]
[1756557331176,1.01392924,108690.0,108680.0,0.0053]
[1756557331813,1.01392924,108690.0,108680.0,0.00206]
[1756557333063,1.01392536,108690.0,108680.0,0.00206]
[1756557333888,0.18402649,108680.0,108670.0,0.14482483]
[1756557334055,0.480918,108680.0,108670.0,0.14702832]
[1756557334688,0.480918,108680.0,108670.0,0.33107175]
[1756557335098,0.480918,108680.0,108670.0,0.14702832]
[1756557335742,0.480918,108680.0,108670.0,0.14802832]
[1756557335947,0.18402649,108680.0,108670.0,0.33207175]
[1756557336157,0.480918,108680.0,108670.0,0.33207175]
[1756557336354,0.18402649,108680.0,108670.0,0.33207175]
[1756557336581,0.99471565,108690.0,108670.0,0.41659668]
[1756557336794,1.0118926,108690.0,108670.0,0.41659668]
[1756557337007,0.18402649,108680.0,108670.0,0.38963325]
[1756557337206,0.480918,108680.0,108670.0,0.49115175]
[1756557337421,0.18402649,108680.0,108670.0,0.48815175]
[1756557338675,0.18402649,108680.0,108670.0,0.48915175]
[1756557339385,0.18402649,108680.0,108670.0,0.49115175]
[1756557340308,0.480918,108680.0,108670.0,0.49115175]
[1756557341160,0.18402649,108680.0,108670.0,0.49115175]
[1756557341368,0.480918,108680.0,108670.0,0.57388468]
[1756557342855,0.480918,108680.0,108670.0,0.49115175]
[1756557344296,0.480918,108680.0,108670.0,0.49015175]
[1756557344666,0.69766414,108690.0,108670.0,0.53257315]
[1756557344884,1.0117331,108690.0,108680.0,0.00230033]
[1756557345098,1.0138431,108690.0,108680.0,0.00436033]
[1756557345322,1.0168231,108690.0,108680.0,0.00230033]
[1756557345531,0.18402649,108680.0,108670.0,0.53035315]
[1756557345722,0.480918,108680.0,108670.0,0.53035315]
[1756557345858,0.480918,108680.0,108670.0,0.53241315]
[1756557346068,0.480918,108680.0,108670.0,0.53041315]
[1756557346905,0.480918,108680.0,108670.0,0.53241315]
[1756557347532,0.480918,108680.0,108670.0,0.53141315]
[1756557348040,0.480918,108680.0,108670.0,0.53341315]
[1756557349893,0.18402649,108680.0,108670.0,0.53341315]
[1756557350147,0.480918,108680.0,108670.0,0.53341315]
[1756557352873,0.50327142,108680.0,108670.0,0.06650371]
[1756557353081,0.50327142,108680.0,108670.0,0.02408231]
[1756557353282,0.86955291,108680.0,108670.0,0.00314349]
[1756557353683,0.86955291,108680.0,108670.0,0.02408231]
[1756557353985,0.89722291,108680.0,108670.0,0.02408231]
[1756557354165,0.89722248,108680.0,108670.0,0.02208231]
[1756557354372,0.89721941,108680.0,108670.0,0.00114349]
[1756557354856,0.98551573,108680.0,108670.0,0.00114349]
[1756557355275,0.07116141,108680.0,108670.0,0.00311349]
[1756557355538,0.01673458,108690.0,108680.0,0.20496531]
[1756557355746,0.71780393,108700.0,108680.0,0.21005531]
[1756557355927,0.73499988,108700.0,108680.0,0.23772031]
[1756557356138,0.18400956,108690.0,108680.0,0.23772031]
[1756557356909,0.18400956,108690.0,108680.0,0.27823896]
[1756557357221,0.18500956,108690.0,108680.0,0.27823896]
[1756557357884,0.18500956,108690.0,108680.0,0.35039177]
[1756557358516,0.001,108690.0,108680.0,0.35039177]
[1756557359330,0.03418828,108690.0,108680.0,0.35039177]
[1756557359976,0.002,108690.0,108680.0,0.27823896]
[1756557360181,0.002,108690.0,108680.0,0.37121897]
[1756557361855,0.46861392,108710.0,108700.0,0.18399264]
[1756557362058,0.63929565,108710.0,108700.0,0.18908264]
[1756557362266,0.63929565,108710.0,108700.0,0.18596264]
[1756557362471,0.31604228,108710.0,108700.0,0.21362364]
[1756557362679,0.15692,108710.0,108700.0,0.29554221]
[1756557363102,1.06098707,108720.0,108710.0,0.18397571]
[1756557363314,1.08013282,108720.0,108700.0,0.29357221]
[1756557363507,0.78323669,108720.0,108710.0,0.00229969]
[1756557363708,1.0093682,108720.0,108710.0,0.00229969]
[1756557364350,1.00941601,108720.0,108710.0,0.00229969]
[1756557364736,0.88423874,108720.0,108710.0,0.1862754]
[1756557364943,1.03797874,108720.0,108710.0,0.18594571]
[1756557365162,0.68782318,108720.0,108710.0,0.2338975]
[1756557365377,0.84474318,108720.0,108710.0,0.2338975]
[1756557366216,0.67064205,108720.0,108710.0,0.18594571]
[1756557366445,0.37179054,108720.0,108710.0,0.18906571]
[1756557366664,0.52867054,108720.0,108710.0,0.23766153]
[1756557366902,0.82752205,108720.0,108710.0,0.23766153]
[1756557367119,0.82752205,108720.0,108710.0,0.2784011]
[1756557367528,0.82752205,108720.0,108710.0,0.2517441]
[1756557367746,0.82752205,108720.0,108710.0,0.45798375]
[1756557367747,4.781e-05,108720.0,108710.0,0.45798375]
[1756557368607,4.781e-05,108720.0,108710.0,0.4086241]
[1756557368828,4.781e-05,108720.0,108710.0,0.50160411]
[1756557369475,4.781e-05,108720.0,108710.0,0.50060411]
[1756557369688,4.781e-05,108720.0,108710.0,0.50260411]
[1756557370098,4.781e-05,108720.0,108710.0,0.34572411]
[1756557370317,4.781e-05,108720.0,108710.0,0.50360411]
[1756557370762,4.781e-05,108720.0,108710.0,0.5880668]
[1756557372256,0.48285811,108720.0,108710.0,0.34360411]
[1756557372474,0.78292962,108720.0,108710.0,0.09233539]
[1756557372694,0.78292962,108720.0,108710.0,0.05159582]
[1756557372911,0.78292962,108720.0,108710.0,0.02393882]
[1756557374464,0.80006279,108720.0,108710.0,0.02393882]
[1756557374680,0.78292962,108720.0,108710.0,0.02393882]
[1756557374911,0.80006276,108720.0,108710.0,0.02393882]
[1756557375114,0.78292962,108720.0,108710.0,0.02393882]
[1756557375318,0.80006209,108720.0,108710.0,0.02393882]
[1756557375967,0.00200781,108720.0,108710.0,0.21218422]
[1756557376202,0.63969811,108720.0,108710.0,0.26826402]
[1756557376423,0.63969811,108720.0,108710.0,0.08428831]
[1756557376654,0.64287811,108720.0,108710.0,0.02393882]
[1756557377098,0.64287811,108720.0,108710.0,0.02623851]
[1756557377508,0.93976962,108720.0,108710.0,0.02623851]
[1756557380333,0.93976962,108720.0,108710.0,0.02393882]
[1756557384626,1.2969272,108720.0,108710.0,0.02393882]
[1756557384849,1.38522352,108720.0,108710.0,0.02393882]
[1756557385063,1.45598352,108720.0,108710.0,0.02393882]
[1756557385274,1.48220558,108720.0,108710.0,0.02393882]
[1756557385707,1.48220558,108720.0,108710.0,0.02193882]
[1756557386387,1.48220558,108720.0,108710.0,0.02093882]
[1756557387792,1.39390926,108720.0,108710.0,0.02093882]
[1756557390419,1.69080077,108720.0,108710.0,0.02093882]
[1756557390621,1.39390926,108720.0,108710.0,0.02093882]
[1756557393375,1.78378078,108720.0,108710.0,0.02093882]
[1756557393579,1.48688927,108720.0,108710.0,0.02093882]
[1756557394019,1.57518559,108720.0,108710.0,0.02093882]
[1756557394487,1.57514559,108720.0,108710.0,0.02093882]
[1756557395157,1.57516464,108720.0,108710.0,0.02093882]
[1756557395586,1.48686832,108720.0,108710.0,0.02093882]
[1756557397864,0.18400956,108690.0,108680.0,0.0751943]
[1756557398076,0.77779258,108690.0,108680.0,0.09613312]
[1756557398290,0.77779258,108690.0,108680.0,0.09824312]
[1756557399039,0.93459258,108690.0,108680.0,0.09824312]
[1756557399258,0.93664258,108690.0,108680.0,0.02612882]
[1756557400299,0.93664258,108690.0,108680.0,0.03112882]
[1756557401159,1.29695137,108690.0,108680.0,0.005]
[1756557401645,1.29675137,108690.0,108680.0,0.02593882]
[1756557401857,1.29675137,108690.0,108680.0,0.02393882]
[1756557403461,1.29675137,108690.0,108680.0,0.02093882]
[1756557403685,1.13995137,108690.0,108680.0,0.02093882]
[1756557403885,1.29675137,108690.0,108680.0,0.02093882]
[1756557405554,1.29673725,108690.0,108680.0,0.02093882]
[1756557405757,1.29359725,108690.0,108680.0,0.02304882]
[1756557405928,1.29673725,108690.0,108680.0,0.02093882]
[1756557408798,0.54615423,108690.0,108680.0,0.02093882]
[1756557409022,1.29359502,108690.0,108680.0,0.02304882]
[1756557409664,1.29674502,108690.0,108680.0,0.02093882]
[1756557411119,1.10734999,108690.0,108680.0,0.02093882]
[1756557411444,1.31029873,108690.0,108680.0,0.02093882]
[1756557411680,1.29135955,108690.0,108680.0,0.02093882]
[1756557412101,1.29135955,108690.0,108680.0,0.02594882]
[1756557412459,1.29135955,108690.0,108680.0,0.02093882]
[1756557414797,1.29135955,108690.0,108680.0,0.02594882]
[1756557416288,1.29137207,108690.0,108680.0,0.02093882]
[1756557420702,0.54078905,108690.0,108680.0,0.02594882]
[1756557420925,1.28967207,108690.0,108680.0,0.02594882]
[1756557421132,1.29181207,108690.0,108680.0,0.02594882]
[1756557421865,1.29181207,108690.0,108680.0,0.02299882]
[1756557422095,1.29181207,108690.0,108680.0,0.02093882]
[1756557423872,1.29181207,108690.0,108680.0,0.02299882]
[1756557424098,1.29181207,108690.0,108680.0,0.02594882]
[1756557425424,1.29444739,108690.0,108680.0,0.02594882]
[1756557425646,1.31163452,108690.0,108680.0,0.02299882]
[1756557426296,1.31808184,108690.0,108680.0,0.02093882]
[1756557426515,1.40637816,108690.0,108680.0,0.02093882]
[1756557426747,0.72744882,108690.0,108680.0,0.02093882]
[1756557426963,1.32123184,108690.0,108680.0,0.02093882]
[1756557428165,1.32124727,108690.0,108680.0,0.02093882]
[1756557428772,1.32124727,108690.0,108680.0,0.02086539]
[1756557428967,1.32125256,108690.0,108680.0,0.02086539]
[1756557431535,1.31810256,108690.0,108680.0,0.02086539]
[1756557432001,1.32125256,108690.0,108680.0,0.02086539]
[1756557432418,1.32128063,108690.0,108680.0,0.02086539]
[1756557432626,1.31813063,108690.0,108680.0,0.02086539]
[1756557434573,1.40642695,108690.0,108680.0,0.02086539]
[1756557435365,1.31813063,108690.0,108680.0,0.02086539]
[1756557436016,1.30092037,108690.0,108680.0,0.02086539]
[1756557436204,1.31814048,108690.0,108680.0,0.02086539]
[1756557436906,1.31822048,108690.0,108680.0,0.02086539]
[1756557437696,1.31822048,108690.0,108680.0,0.02587539]
[1756557438970,1.31822048,108690.0,108680.0,0.02086539]
[1756557439166,1.4065168,108690.0,108680.0,0.02086539]
[1756557439980,1.4095968,108690.0,108680.0,0.02086539]
[1756557441871,1.32130048,108690.0,108680.0,0.02086539]
[1756557444014,1.3188623,108690.0,108680.0,0.02086539]
[1756557446558,1.31886149,108690.0,108680.0,0.02086539]
[1756557446761,1.31885925,108690.0,108680.0,0.02086539]
[1756557447032,0.52402649,108680.0,108660.0,0.0721143]
[1756557447250,0.97809494,108670.0,108660.0,0.0751143]
[1756557447453,0.99740281,108670.0,108660.0,0.0772343]
[1756557447689,0.99740281,108670.0,108660.0,0.09817312]
[1756557448387,0.99745058,108670.0,108660.0,0.09305312]
[1756557448844,0.99745058,108670.0,108660.0,0.02093882]
[1756557449100,1.03775912,108670.0,108660.0,0.02093882]
[1756557449921,1.02372568,108670.0,108660.0,0.02605882]
[1756557450638,0.72683417,108670.0,108660.0,0.02605882]
[1756557450880,1.02163568,108670.0,108660.0,0.02605882]
[1756557451069,1.02372568,108670.0,108660.0,0.02605882]
[1756557451877,0.72679417,108670.0,108660.0,0.02605882]
[1756557452057,1.02368568,108670.0,108660.0,0.02605882]
[1756557453761,1.111982,108670.0,108660.0,0.02093882]
[1756557453962,1.111982,108670.0,108660.0,0.02605882]
[1756557454172,1.02368568,108670.0,108660.0,0.02605882]
[1756557454683,1.02364568,108670.0,108660.0,0.02605882]
[1756557455750,1.02363787,108670.0,108660.0,0.02605882]
[1756557456178,1.32360938,108670.0,108660.0,0.02093882]
[1756557456755,0.18407731,108650.0,108640.0,0.09605312]
[1756557456888,0.63808882,108650.0,108640.0,0.09817312]
[1756557457095,0.65527305,108650.0,108640.0,0.09817312]
[1756557457685,0.65527305,108650.0,108640.0,0.02605882]
[1756557457893,0.35838154,108650.0,108640.0,0.02605882]
[1756557458109,0.65527305,108650.0,108640.0,0.21015307]
[1756557458635,0.65527305,108650.0,108640.0,0.21215307]
[1756557459048,0.65527305,108650.0,108640.0,0.02905882]
[1756557459263,0.65527305,108650.0,108640.0,0.21315307]
[1756557459915,0.68194578,108650.0,108640.0,0.02905882]
[1756557460162,0.38505427,108650.0,108640.0,0.02905882]
[1756557460389,0.68194578,108650.0,108640.0,0.02905882]
[1756557461295,0.68403578,108650.0,108640.0,0.02905882]
[1756557461567,0.68403578,108650.0,108640.0,0.02393882]
[1756557461568,1.04511189,108650.0,108640.0,0.02393882]
[1756557462502,1.04511189,108650.0,108620.0,0.07511431]
[1756557462503,0.1841112,108630.0,108620.0,0.07511431]
[1756557462736,0.63836271,108630.0,108620.0,0.07211431]
[1756557462970,0.63836271,108630.0,108620.0,0.09517313]
[1756557463189,0.3414712,108630.0,108620.0,0.27930128]
[1756557463413,0.18410865,108640.0,108620.0,0.33234632]
[1756557463647,0.18410865,108640.0,108630.0,0.1871112]
[1756557463648,0.99560365,108640.0,108630.0,0.1871112]
[1756557463865,0.35721124,108640.0,108630.0,0.1892312]
[1756557464079,4.775e-05,108640.0,108630.0,0.21017002]
[1756557464348,4.775e-05,108640.0,108630.0,0.29846634]
[1756557464792,0.184142,108640.0,108630.0,0.21017002]
[1756557465018,0.29693926,108640.0,108630.0,0.21017002]
[1756557465252,4.775e-05,108640.0,108630.0,0.21017002]
[1756557465484,0.29693926,108640.0,108630.0,0.21017002]
[1756557465696,4.775e-05,108640.0,108630.0,0.21017002]
[1756557465911,0.29693926,108640.0,108630.0,0.21017002]
[1756557468585,0.48103351,108640.0,108630.0,0.21017002]
[1756557469447,0.48103351,108640.0,108630.0,0.02605882]
[1756557470089,0.48310351,108640.0,108630.0,0.02605882]
[1756557470498,0.48310351,108640.0,108630.0,0.02093882]
[1756557470702,0.20338051,108640.0,108630.0,0.02093882]
[1756557470912,0.50027202,108640.0,108630.0,0.02093882]
[1756557471114,0.20338051,108640.0,108630.0,0.02619882]
[1756557471341,0.50027202,108640.0,108630.0,0.02619882]
[1756557471546,0.50027202,108640.0,108630.0,0.02093882]
[1756557471749,1.22838985,108640.0,108630.0,0.02093882]
[1756557472060,0.5241112,108630.0,108620.0,1e-08]
[1756557472295,0.95306273,108630.0,108620.0,1e-08]
[1756557472469,0.95806273,108630.0,108620.0,1e-08]
[1756557472672,1.05104274,108630.0,108620.0,1e-08]
[1756557473443,1.13933906,108630.0,108620.0,1e-08]
[1756557473648,0.37005972,108630.0,108620.0,1e-08]
[1756557473863,1.12184274,108630.0,108620.0,1e-08]
[1756557474068,0.96384274,108630.0,108620.0,1e-08]
[1756557474277,0.86805972,108630.0,108620.0,1e-08]
[1756557474480,1.46184274,108630.0,108620.0,1e-08]
[1756557474889,1.46180274,108630.0,108620.0,1e-08]
[1756557475505,1.55009906,108630.0,108620.0,1e-08]
[1756557476481,0.95631604,108630.0,108620.0,1e-08]
[1756557476826,1.55009906,108630.0,108620.0,1e-08]
[1756557477702,6.41001439,108630.0,108620.0,1e-08]
[1756557477880,6.41642371,108630.0,108620.0,1e-08]
[1756557478314,6.40995339,108630.0,108620.0,1e-08]
[1756557478517,6.41638371,108630.0,108620.0,1e-08]
[1756557478709,6.41638104,108630.0,108620.0,1e-08]
[1756557479108,6.41738104,108630.0,108620.0,1e-08]
[1756557480356,6.25946104,108630.0,108620.0,1e-08]
[1756557480551,6.41734104,108630.0,108620.0,1e-08]
[1756557482298,6.73900218,108630.0,108620.0,1e-08]
[1756557482763,6.76258249,108630.0,108620.0,1e-08]
[1756557483215,0.77792812,108610.0,108600.0,0.0004]
[1756557483457,6.51033143,108610.0,108600.0,0.0004]
[1756557483672,6.51240143,108610.0,108600.0,0.0004]
[1756557483879,6.43753862,108610.0,108600.0,0.0004]
[1756557484089,6.45880597,108610.0,108600.0,0.0004]
[1756557484293,6.46518168,108610.0,108600.0,0.0004]
[1756557485111,6.30738168,108610.0,108600.0,0.0004]
[1756557485375,5.71266866,108610.0,108600.0,0.00256]
[1756557485581,1.29907913,108610.0,108600.0,0.02659882]
[1756557486016,1.38944545,108610.0,108600.0,0.02659882]
[1756557486251,1.09255394,108610.0,108600.0,0.02133882]
[1756557486470,1.68633696,108610.0,108600.0,0.02349882]
[1756557486678,1.30118913,108610.0,108600.0,0.02659882]
[1756557487115,1.61245086,108610.0,108600.0,0.02133882]
[1756557487354,1.61538086,108610.0,108600.0,0.02133882]
[1756557487613,1.45741961,108610.0,108600.0,0.02133882]
[1756557487840,1.01871659,108610.0,108600.0,0.02659882]
[1756557488054,1.40890442,108610.0,108600.0,0.02133882]
[1756557488482,6.24906542,108610.0,108600.0,0.02133882]
[1756557489569,6.24906542,108610.0,108600.0,0.0004]
[1756557489787,6.26876503,108610.0,108600.0,0.0004]
[1756557490225,6.17773871,108610.0,108600.0,0.0004]
[1756557490412,5.7225672,108610.0,108600.0,0.0004]
[1756557490658,6.1583591,108610.0,108600.0,0.0004]
[1756557491116,6.18200621,108610.0,108600.0,0.0004]
[1756557491338,6.18200621,108610.0,108600.0,0.00566]
[1756557491554,5.8830447,108610.0,108600.0,0.00566]
[1756557491768,5.8850747,108610.0,108600.0,0.00566]
[1756557491998,6.27026253,108610.0,108600.0,0.00566]
[1756557492217,1.0428437,108610.0,108600.0,0.02659882]
[1756557492729,0.8842837,108610.0,108600.0,0.02659882]
[1756557492964,0.65285049,108610.0,108600.0,0.50765239]
[1756557493178,0.83699559,108610.0,108600.0,0.50765239]
[1756557493402,0.83699559,108610.0,108600.0,0.21076088]
[1756557493631,0.65281049,108610.0,108600.0,0.21076088]
[1756557493820,0.65281659,108610.0,108600.0,0.21076088]
[1756557494032,0.83296169,108610.0,108600.0,0.02659882]
[1756557494287,0.38346169,108610.0,108600.0,0.02659882]
[1756557494500,0.47175801,108610.0,108600.0,0.02659882]
[1756557494712,0.38346169,108610.0,108600.0,0.02659882]
[1756557494922,0.38346169,108610.0,108600.0,0.02859882]
[1756557495590,0.6803532,108610.0,108600.0,0.02959882]
[1756557495805,0.38346169,108610.0,108600.0,0.02959882]
[1756557496030,0.22490169,108610.0,108600.0,0.02959882]
[1756557496253,0.19963659,108610.0,108600.0,0.21276088]
[1756557496918,0.38378169,108610.0,108600.0,0.02859882]
[1756557497135,0.38378169,108610.0,108600.0,0.02659882]
[1756557497354,0.38379589,108610.0,108600.0,0.02659882]
[1756557497559,0.6807674,108610.0,108600.0,0.21076088]
[1756557497812,0.68077363,108610.0,108600.0,0.02659882]
[1756557498236,0.68077363,108610.0,108600.0,0.02859882]
[1756557498853,0.68077363,108610.0,108600.0,0.02959882]
[1756557499901,0.38588212,108610.0,108600.0,0.02959882]
[1756557500132,0.68277363,108610.0,108600.0,0.02959882]
[1756557500392,0.76946381,108610.0,108600.0,0.02959882]
[1756557500597,0.68277363,108610.0,108600.0,0.02859882]
[1756557501014,0.38588212,108610.0,108600.0,0.02133882]
[1756557501221,0.68277363,108610.0,108600.0,0.02133882]
[1756557501667,0.38588212,108610.0,108600.0,0.02337882]
[1756557501866,0.68277363,108610.0,108600.0,0.02652882]
[1756557502482,0.38588212,108610.0,108600.0,0.02652882]
[1756557502706,0.68277363,108610.0,108600.0,0.02652882]
[1756557502893,0.38588212,108610.0,108600.0,0.02652882]
[1756557503098,0.68277363,108610.0,108600.0,0.02652882]
[1756557503546,6.24976132,108610.0,108600.0,0.02133882]
[1756557503749,6.07206367,108610.0,108600.0,0.02133882]
[1756557503949,6.36895518,108610.0,108600.0,0.0004]
[1756557504153,6.36895481,108610.0,108600.0,0.0004]
[1756557504567,6.28566263,108610.0,108600.0,0.0004]
[1756557505401,6.28658263,108610.0,108600.0,0.0004]
[1756557505612,6.28758263,108610.0,108600.0,0.0004]
[1756557505835,5.83181112,108610.0,108600.0,0.0004]
[1756557506071,5.52996961,108610.0,108600.0,0.02652882]
[1756557506310,1.14758012,108610.0,108600.0,0.02337882]
[1756557506799,1.14758012,108610.0,108600.0,0.02133882]
[1756557507016,1.53571795,108610.0,108600.0,0.02133882]
[1756557507242,1.23882644,108610.0,108600.0,0.02133882]
[1756557507499,1.23587644,108610.0,108600.0,0.02133882]
[1756557507729,1.53281771,108610.0,108600.0,0.02133882]
[1756557508004,1.44460139,108610.0,108600.0,0.02337882]
[1756557508230,1.14774988,108610.0,108600.0,0.02337882]
[1756557508453,1.14774988,108610.0,108600.0,0.02652882]
[1756557508672,1.14570988,108610.0,108600.0,0.02652882]
[1756557509541,1.14770988,108610.0,108600.0,0.02652882]
[1756557509756,1.14770988,108610.0,108600.0,0.02133882]
[1756557509973,1.44460139,108610.0,108600.0,0.02133882]
[1756557510427,1.53289771,108610.0,108600.0,0.02133882]
[1756557510614,1.2360062,108610.0,108600.0,0.02133882]
[1756557510758,1.2360062,108610.0,108600.0,0.02337882]
[1756557510995,1.2360062,108610.0,108600.0,0.02652882]
[1756557511211,1.53584771,108610.0,108600.0,0.02133882]
[1756557511403,1.47008316,108610.0,108600.0,0.02133882]
[1756557511811,1.37883684,108610.0,108600.0,0.02133882]
[1756557512241,1.21987684,108610.0,108600.0,0.02133882]
[1756557512442,1.08194533,108610.0,108600.0,0.02652882]
[1756557512721,1.10537329,108610.0,108600.0,0.02652882]
[1756557512912,1.10337329,108610.0,108600.0,0.02652882]
[1756557513372,0.07251411,108610.0,108600.0,0.02652882]
[1756557513587,0.23235587,108630.0,108620.0,0.18412815]
[1756557513588,0.0144125,108630.0,108620.0,0.18412815]
[1756557513790,0.00486121,108640.0,108630.0,0.20505002]
[1756557513934,0.00486121,108640.0,108630.0,0.20820002]
[1756557514136,4.775e-05,108640.0,108630.0,0.25897484]
[1756557514578,4.775e-05,108640.0,108630.0,0.28665184]
[1756557515581,0.49356501,108640.0,108630.0,0.05580582]
[1756557515800,0.49556501,108640.0,108630.0,0.02797882]
[1756557516225,0.83556501,108640.0,108630.0,0.02797882]
[1756557516435,0.83851501,108640.0,108630.0,0.02593882]
[1756557516651,0.83556501,108640.0,108630.0,0.02797882]
[1756557516883,0.83556501,108640.0,108630.0,0.02497882]
[1756557517526,0.83556501,108640.0,108630.0,0.02297882]
[1756557517943,0.83556501,108640.0,108630.0,0.02397882]
[1756557518486,0.18412815,108620.0,108600.0,0.44919519]
[1756557518717,0.49355116,108620.0,108610.0,0.20823392]
[1756557518934,0.49355116,108620.0,108610.0,0.02612882]
[1756557519146,0.49355116,108620.0,108610.0,0.21027392]
[1756557520221,0.49555116,108620.0,108610.0,0.02612882]
[1756557520433,0.49555116,108620.0,108610.0,0.02297882]
[1756557520613,0.49555116,108620.0,108610.0,0.02812882]
[1756557521034,0.49555116,108620.0,108610.0,0.02497882]
[1756557521483,0.49850116,108620.0,108610.0,0.02597882]
[1756557521907,0.49850116,108620.0,108610.0,0.02393882]
[1756557522115,0.52808029,108620.0,108610.0,0.02393882]
[1756557522551,0.49850116,108620.0,108610.0,0.02393882]
[1756557522991,1.14792417,108620.0,108610.0,0.02393882]
[1756557523219,6.15190518,108620.0,108610.0,0.003]
[1756557523492,5.84248217,108620.0,108610.0,0.003]
[1756557523711,6.00204217,108620.0,108610.0,0.003]
[1756557523904,0.1841451,108610.0,108600.0,0.0004]
[1756557524159,5.42670912,108610.0,108600.0,0.0004]
[1756557524379,0.58854812,108610.0,108600.0,0.02133882]
[1756557524607,0.59149812,108610.0,108600.0,0.02133882]
[1756557525250,0.59149812,108610.0,108600.0,0.0004]
[1756557525477,0.66791147,108610.0,108600.0,0.0004]
[1756557525691,1.334468,108610.0,108600.0,0.0004]
[1756557525911,1.36062854,108610.0,108600.0,0.0004]
[1756557526579,1.22509924,108610.0,108600.0,0.0004]
[1756557527246,6.37468325,108610.0,108600.0,0.0004]
[1756557527882,6.21520325,108610.0,108600.0,0.0004]
[1756557528094,6.06582024,108610.0,108600.0,0.0004]
[1756557528342,6.04868436,108610.0,108600.0,0.0004]
[1756557528557,6.0658102,108610.0,108600.0,0.0004]
[1756557529198,6.06580857,108610.0,108600.0,0.0004]
[1756557529411,6.04607263,108610.0,108600.0,0.0004]
[1756557529852,6.18614962,108610.0,108600.0,0.0004]
[1756557530057,6.51529963,108610.0,108600.0,0.0004]
[1756557530481,6.49557263,108610.0,108600.0,0.0004]
[1756557530701,6.51529544,108610.0,108600.0,0.0004]
[1756557530968,6.27589209,108610.0,108600.0,0.02346882]
[1756557531190,1.56978404,108610.0,108600.0,0.02656882]
[1756557531404,1.56978404,108610.0,108600.0,0.02346882]
[1756557532048,1.40958404,108610.0,108600.0,0.02346882]
[1756557532503,1.56990404,108610.0,108600.0,0.02346882]
[1756557533119,1.40958404,108610.0,108600.0,0.02346882]
[1756557533331,1.29748182,108610.0,108600.0,0.02656882]
[1756557533557,1.45780182,108610.0,108600.0,0.02656882]